fUSD/lending_fUSD_20240108
["ID","MTS","AMOUNT","RATE_DAILY","PERIOD"]
[310875793,1704756775161,-500.0,0.00044986,30]
[310875794,1704756775171,-3651.49,0.00044986,30]
[310875795,1704756775181,-500.0,0.00044986,30]
[310875796,1704756775190,-2217.88,0.00044986,30]
[310875797,1704756775200,-500.0,0.00044986,30]
[310875798,1704756775210,-3144.81,0.00044986,30]
[310875799,1704756775219,-1398.08,0.00044986,30]
[310875800,1704756775229,-4520.27,0.00044986,30]
[310875801,1704756775240,-500.0,0.00044986,30]
[310875802,1704756775250,-994.57,0.00044986,30]
[310875803,1704756775259,-2114.59,0.00044986,30]
[310875804,1704756775269,-596.13,0.00044986,30]
[310875805,1704756775279,-10421.74,0.00044986,30]
[310875806,1704756775289,-3227.48,0.00044986,30]
[310875807,1704756775300,-11054.94,0.00044986,30]
[310875808,1704756775309,-1031.3,0.00044986,30]
[310875809,1704756775320,-518.45,0.00044986,30]
[310875810,1704756775330,-5204.02,0.00044986,30]
[310875811,1704756775341,-6360.4,0.00044986,30]
[310875812,1704756775352,-727.21,0.00044986,30]
[310875813,1704756775362,-7190.67,0.00044986,30]
[310875814,1704756775372,-500.0,0.00044986,30]
[310875815,1704756775382,-905.37,0.00044986,30]
[310875816,1704756775391,-2450.43,0.00044986,30]
[310875817,1704756775400,-6987.35,0.00044986,30]
[310875818,1704756775408,-58910.31,0.00044986,30]
[310875819,1704756775417,-2555.82,0.00044986,30]
[310875820,1704756775427,-1830.94,0.00044986,30]
[310875821,1704756775437,-1597.01,0.00044986,30]
[310875822,1704756775448,-1246.31,0.00044986,30]
[310875823,1704756775458,-1051.21,0.00044986,30]
[310875824,1704756775468,-4565.15,0.00044986,30]
[310875825,1704756775478,-23216.1,0.00044986,30]
[310875826,1704756775488,-1748.48,0.00044986,30]
[310875827,1704756775498,-1666.13,0.00044986,30]
[310875828,1704756775508,-500.0,0.00044986,30]
[310875829,1704756775518,-946.86,0.00044986,30]
[310875830,1704756775529,-1651.72,0.00044986,30]
[310875831,1704756775539,-12694.81,0.00044986,30]
[310875832,1704756775548,-22803.08,0.00044986,30]
[310875833,1704756775558,-544.07,0.00044986,30]
[310875834,1704756775567,-1904.53,0.00044986,30]
[310875835,1704756775577,-1470.65,0.00044986,30]
[310875836,1704756775586,-1525.58,0.00044986,30]
[310875837,1704756775596,-7697.29,0.00044986,30]
[310875838,1704756775606,-17276.91,0.00044986,30]
[310875839,1704756775619,-3546.62,0.00044986,30]
[310875840,1704756775629,-534.42,0.00044986,30]
[310875841,1704756775639,-1787.86,0.00044986,30]
[310875842,1704756775650,-530.67,0.00044986,30]
[310875843,1704756775661,-19308.65,0.00044986,30]
[310875844,1704756775670,-1055.51,0.00044986,30]
[310875845,1704756775680,-1405.42,0.00044986,30]
[310875846,1704756775690,-2533.44,0.00044986,30]
[310875847,1704756775700,-28244.34,0.00044986,30]
[310875848,1704756775711,-7599.82,0.00044986,30]
[310875849,1704756775721,-3290.87,0.00044986,30]
[310875850,1704756775731,-1749.41,0.00044986,30]
[310875851,1704756775745,-1523.96,0.00044986,30]
[310875852,1704756775755,-500.0,0.00044986,30]
[310875853,1704756775764,-2331.99,0.00044986,30]
[310875854,1704756775774,-500.0,0.00044986,30]
[310875855,1704756775783,-24829.0,0.00044986,30]
[310875856,1704756775793,-571.4,0.00044986,30]
[310875857,1704756775803,-505.93,0.00044986,30]
[310875858,1704756775812,-1132.72,0.00044986,30]
[310875859,1704756775822,-4646.83,0.00044986,30]
[310875860,1704756775832,-986.65,0.00044986,30]
[310875861,1704756775842,-8562.35,0.00044986,30]
[310875862,1704756775851,-1891.24,0.00044986,30]
[310875863,1704756775861,-2975.95,0.00044986,30]
[310875864,1704756775870,-1215.56,0.00044986,30]
[310875865,1704756775880,-1103.51,0.00044986,30]
[310875866,1704756775890,-1600.6,0.00044986,30]
[310875867,1704756775899,-526.98,0.00044986,30]
[310875868,1704756775908,-4009.62,0.00044986,30]
[310875869,1704756775918,-1234.75,0.00044986,30]
[310875870,1704756775927,-992.88,0.00044986,30]
[310875871,1704756775937,-4869.37,0.00044986,30]
[310875872,1704756775946,-897.99,0.00044986,30]
[310875873,1704756775956,-541.66,0.00044986,30]
[310875874,1704756775965,-7383.47,0.00044986,30]
[310875875,1704756775975,-4273.8,0.00044986,30]
[310875876,1704756775984,-6660.96,0.00044986,30]
[310875877,1704756775994,-500.0,0.00044986,30]
[310875878,1704756776004,-2239.63,0.00044986,30]
[310875879,1704756776013,-2733.28,0.00044986,30]
[310875880,1704756776023,-3917.53,0.00044986,30]
[310875881,1704756776033,-5761.82,0.00044986,30]
[310875882,1704756776043,-4613.72,0.00044986,30]
[310875883,1704756776052,-6128.05,0.00044986,30]
[310875884,1704756776062,-1814.56,0.00044986,30]
[310875885,1704756776072,-748.42,0.00044986,30]
[310875886,1704756776082,-24982.99,0.00044986,30]
[310875887,1704756776092,-68738.67,0.00044986,30]
[310875888,1704756776102,-1122.06,0.00044986,30]
[310875889,1704756776112,-1167.5,0.00044986,30]
[310875890,1704756776121,-2451.83,0.00044986,30]
[310875891,1704756776131,-2898.22,0.00044986,30]
[310875892,1704756776140,-561.68,0.00044986,30]
[310875893,1704756776150,-2938.98,0.00044986,30]
[310875894,1704756776159,-500.0,0.00044986,30]
[310875895,1704756776169,-1114.27,0.00044986,30]
[310875896,1704756776178,-500.0,0.00044986,30]
[310875897,1704756776188,-500.0,0.00044986,30]
[310875898,1704756776198,-2059.84,0.00044986,30]
[310875899,1704756776207,-3718.07,0.00044986,30]
[310875900,1704756776217,-1069.16,0.00044986,30]
[310875901,1704756776227,-1609.63,0.00044986,30]
[310875902,1704756776239,-889.25,0.00044986,30]
[310875903,1704756776249,-500.0,0.00044986,30]
[310875904,1704756776259,-1895.45,0.00044986,30]
[310875905,1704756776271,-7867.83,0.00044986,30]
[310875906,1704756776280,-3046.89,0.00044986,30]
[310875907,1704756776290,-500.0,0.00044986,30]
[310875908,1704756776300,-5831.72,0.00044986,30]
[310875909,1704756776309,-4601.73,0.00044986,30]
[310875910,1704756776318,-500.0,0.00044986,30]
[310875911,1704756776328,-1634.99,0.00044986,30]
[310875912,1704756776337,-766.19,0.00044986,30]
[310875913,1704756776347,-500.0,0.00044986,7]
[310875914,1704756776357,-3320.52,0.00044986,30]
[310875915,1704756776366,-2272.7,0.00044986,30]
[310875916,1704756776376,-500.0,0.00044986,30]
[310875917,1704756776385,-500.0,0.00044986,30]
[310875918,1704756776395,-4050.3,0.00044986,30]
[310875919,1704756776404,-5433.81,0.00044986,30]
[310875920,1704756776414,-2021.89,0.00044986,30]
[310875921,1704756776424,-1715.89,0.00044986,30]
[310875922,1704756776433,-682.4,0.00044986,30]
[310875923,1704756776443,-4973.82,0.00044986,30]
[310875924,1704756776453,-11958.39,0.00044986,30]
[310875925,1704756776463,-1596.0,0.00044986,30]
[310875926,1704756776473,-1030.88,0.00044986,30]
[310875927,1704756776483,-908.95,0.00044986,30]
[310875928,1704756776495,-1262.46,0.00044986,30]
[310875929,1704756776505,-635.18,0.00044986,30]
[310875930,1704756776514,-3938.93,0.00044986,30]
[310875931,1704756776524,-500.0,0.00044986,30]
[310875932,1704756776534,-4689.98,0.00044986,30]
[310875933,1704756776545,-2424.38,0.00044986,30]
[310875934,1704756776555,-1681.56,0.00044986,30]
[310875935,1704756776565,-828.54,0.00044986,30]
[310875936,1704756776575,-500.0,0.00044986,30]
[310875937,1704756776585,-9822.93,0.00044986,30]
[310875938,1704756776595,-697.51,0.00044986,30]
[310875939,1704756776604,-500.0,0.00044986,30]
[310875940,1704756776614,-6453.2,0.00044986,30]
[310875941,1704756776624,-500.0,0.00044986,30]
[310875942,1704756776635,-524.57,0.00044986,30]
[310875943,1704756776645,-1864.44,0.00044986,30]
[310875944,1704756776656,-2657.05,0.00044986,30]
[310875945,1704756776666,-1990.81,0.00044986,30]
[310875946,1704756776677,-2627.41,0.00044986,30]
[310875947,1704756776687,-4323.89,0.00044986,30]
[310875948,1704756776697,-517.5,0.00044986,30]
[310875949,1704756776707,-1325.56,0.00044986,30]
[310875950,1704756776717,-1408.14,0.00044986,30]
[310875951,1704756776728,-526.72,0.00044986,30]
[310875952,1704756776739,-6129.22,0.00044986,30]
[310875953,1704756776749,-2506.65,0.00044986,30]
[310875954,1704756776759,-23835.6,0.00044986,30]
[310875955,1704756776769,-8609.98,0.00044986,30]
[310875956,1704756776779,-5555.12,0.00044986,30]
[310875957,1704756776789,-838.78,0.00044986,30]
[310875958,1704756776798,-764.5,0.00044986,30]
[310875959,1704756776808,-14014.86,0.00044986,30]
[310875960,1704756776818,-3301.82,0.00044986,30]
[310875961,1704756776828,-2159.52,0.00044986,30]
[310875962,1704756776837,-3674.67,0.00044986,30]
[310875963,1704756776847,-2777.2,0.00044986,30]
[310875964,1704756776857,-2788.43,0.00044986,30]
[310875965,1704756776867,-4288.9,0.00044986,30]
[310875966,1704756776877,-1129.12,0.00044986,30]
[310875967,1704756776886,-1247.1,0.00044986,30]
[310875968,1704756776896,-2704.64,0.00044986,30]
[310875969,1704756776906,-1588.77,0.00044986,30]
[310875970,1704756777147,-500.0,0.00044986,30]
[310875971,1704756777157,-500.0,0.00044986,30]
[310875972,1704756777167,-4271.64,0.00044986,30]
[310875973,1704756777176,-1183.04,0.00044986,30]
[310875974,1704756777185,-5366.93,0.00044986,30]
[310875975,1704756777194,-3311.11,0.00044986,30]
[310875976,1704756777203,-2300.49,0.00044986,30]
[310875977,1704756777213,-927.98,0.00044986,30]
[310875978,1704756777222,-3892.53,0.00044986,30]
[310875979,1704756777232,-2134.5,0.00044986,30]
[310875980,1704756777242,-1002.59,0.00044986,30]
[310875981,1704756777251,-658.62,0.00044986,30]
[310875982,1704756777261,-634.88,0.00044986,30]
[310875983,1704756777270,-2402.91,0.00044986,30]
[310875984,1704756777279,-868.67,0.00044986,30]
[310875985,1704756777288,-500.0,0.00044986,30]
[310875986,1704756777297,-4598.33,0.00044986,30]
[310875987,1704756777306,-631.71,0.00044986,30]
[310875988,1704756777316,-1166.97,0.00044986,30]
[310875989,1704756777343,-1831.45,0.00044986,30]
[310875990,1704756777353,-2966.32,0.00044986,30]
[310875991,1704756777363,-1019.92,0.00044986,30]
[310875992,1704756777372,-1715.18,0.00044986,30]
[310875993,1704756777382,-6321.92,0.00044986,30]
[310875994,1704756777391,-2965.76,0.00044986,30]
[310875995,1704756777401,-4275.79,0.00044986,30]
[310875996,1704756777410,-561.40811364,0.00044986,30]
[310875997,1704756777420,-656.3,0.00044986,30]
[310875998,1704756777430,-3115.52,0.00044986,30]
[310875999,1704756777439,-500.0,0.00044987,39]
[310876000,1704756777448,-1000.0,0.00044999,21]
[310876001,1704756777458,-1000.0,0.00044999,21]
[310876002,1704756777467,-100000.0,0.00045,15]
[310876003,1704756777477,-300.28798645,0.00045,14]
[310876004,1704756777486,-156.99,0.00045,7]
[310876005,1704756777495,-300.0,0.00045,27]
[310876006,1704756777504,-30000.0,0.00045,14]
[310876007,1704756777514,-4026.12569416,0.00045,6]
[310876008,1704756777523,-173.0178896,0.00045,5]
[310876009,1704756777533,-955.24899829,0.00045,7]
[310876010,1704756777542,-422433.76847218,0.00045,7]
[310876011,1704756777551,-4446.02249927,0.00045,10]
[310876012,1704756777560,-1000.80116773,0.00045,14]
[310876013,1704756777570,-234475.77841485,0.00045,2]
[310876014,1704756777579,-805.09551069,0.00045,2]
[310876015,1704756777588,-1000.0,0.00045,2]
[310876016,1704756777599,-5000.0,0.00045,10]
[310876017,1704756777609,-178.42943024,0.00045,10]
[310876018,1704756777622,-2967.437277,0.00045,2]
[310876019,1704756777632,-848.3,0.00045,20]
[310876020,1704756777642,-50000.0,0.00045,10]
[310876021,1704756777652,-1000.0,0.00045,20]
[310876022,1704756777662,-109419.99498794,0.00045,2]
[310876023,1704756777672,-373810.01221377,0.00045,30]
[310876024,1704756777681,-1767.4036353,0.00045,60]
[310876025,1704756777691,-157.20958638,0.00045,30]
[310876026,1704756777701,-728.40809413,0.00045,30]
[310876027,1704756777711,-350.0,0.00045,120]
[310876028,1704756777720,-400.0,0.00045,120]
[310876029,1704756777730,-404.14599207,0.00045,32]
[310876030,1704756777741,-4428.9716993,0.00045,32]
[310876031,1704756777750,-5000.0,0.00045,120]
[310876032,1704756777759,-900.0,0.00045,46]
[310876033,1704756777768,-186.34103231,0.00045,90]
[310876034,1704756777777,-225.08970234,0.00045,30]
[310876035,1704756777787,-1520.0431779,0.00045,30]
[310876036,1704756777796,-50000.0,0.00045,20]
[310876037,1704756777805,-10600.0,0.00045,60]
[310876038,1704756777814,-16964.37463487,0.00045,30]
[310876039,1704756777823,-4804.0,0.00045,30]
[310876040,1704756777832,-1000.0,0.00045,30]
[310876041,1704756777841,-1000.0,0.00045,30]
[310876042,1704756777850,-1000.0,0.00045,30]
[310876043,1704756777859,-1000.0,0.00045,30]
[310876044,1704756777868,-1000.0,0.00045,30]
[310876045,1704756777876,-1000.0,0.00045,10]
[310876046,1704756777885,-1000.0,0.00045,10]
[310876047,1704756777895,-1000.0,0.00045,21]
[310876048,1704756777904,-1000.0,0.00045,21]
[310876049,1704756777914,-78534.70481581,0.00045,15]
[310876050,1704756777923,-200000.0,0.00045,7]
[310876051,1704756777932,-9086.39482879,0.00045,30]
[310876052,1704756777942,-1019.75102467,0.00045,30]
[310876053,1704756777951,-195.01978179,0.00045,32]
[310876054,1704756777961,-1346.47999726,0.00045,30]
[310876055,1704756777971,-2536.0,0.00045,30]
[310876056,1704756777980,-12533.0,0.00045,120]
[310876057,1704756777990,-250.0,0.00045,7]
[310876058,1704756778000,-2126.23554979,0.00045,120]
[310876059,1704756778010,-3000.0,0.00045,30]
[310876060,1704756778019,-30000.0,0.00045,30]
[310876061,1704756778030,-1377.57183447,0.00045,40]
[310876062,1704756778040,-2229.8,0.00045,32]
[310876063,1704756778049,-2245.64314356,0.00045,2]
[310876064,1704756778058,-1000.0,0.00045,7]
[310876065,1704756778067,-1000.0,0.00045,7]
[310876066,1704756778077,-264.126,0.00045,32]
[310876067,1704756778086,-1809.51874999,0.00045,32]
[310876068,1704756778096,-765.37738715,0.00045,120]
[310876069,1704756778105,-4725.53564688,0.00045,30]
[310876070,1704756778114,-942.97735163,0.00045,30]
[310876071,1704756778124,-1203.11091352,0.00045,120]
[310876072,1704756778133,-2532.08670653,0.00045,30]
[310876073,1704756778142,-1000.0,0.00045,120]
[310876074,1704756778151,-4467.67441994,0.00045,32]
[310876075,1704756778160,-45173.45930617,0.00045,32]
[310876076,1704756778170,-153.35507286,0.00045,33]
[310876077,1704756778179,-472395.99576393,0.00045,2]
[310876078,1704756778976,-500.0,0.00043835,30]
[310876079,1704756778986,-4076.63878647,0.00045,2]
[310876080,1704756778998,-941.736,0.00045,2]
[310876081,1704756779040,-2864.42,0.00043835,30]
[310876082,1704756779049,-500.0,0.00044657,30]
[310876083,1704756779059,-2396.09,0.00044986,30]
[310876084,1704756779068,-3017.03641428,0.00045,2]
[310876085,1704756779088,-756.94,0.00043999,30]
[310876086,1704756779097,-54.32389521,0.00045,2]
[310876087,1704756779109,-578.14784124,0.00045,2]
[310876088,1704756779613,-472.34842252,0.00031999,2]
[310876089,1704756779622,-60.65157748,0.00031999,2]
[310876090,1704756779634,-128.51986018,0.00031999,2]
[310876091,1704756779644,-361.12631998,0.00031999,4]
[310876092,1704756779653,-460.81494736,0.00031999,4]
[310876093,1704756779662,-355.46102894,0.00031999,4]
[310876094,1704756779672,-380.92009068,0.00031999,4]
[310876095,1704756779681,-234.74773789,0.00036089,2]
[310876096,1704756779691,-952.23,0.00043835,30]
[310876097,1704756779700,-8896.93001497,0.00043835,30]
[310876098,1704756779853,-490.771425,0.00031999,4]
[310876099,1704756779863,-2684.523575,0.00043835,30]
[310876100,1704756779874,-717.40654,0.00043835,30]
[310876101,1704756779885,-742.5,0.00043835,30]
[310876102,1704756779901,-1411.46639463,0.00043835,30]
[310876103,1704756779927,-485.305,0.00043835,30]
[310876104,1704756779951,-1596.9,0.00043835,30]
[310876105,1704756780085,2500.0,0.00022498,2]
[310876106,1704756780398,-1000.0,0.00031999,2]
[310876107,1704756780408,-1230.77682644,0.00043835,30]
[310876108,1704756780467,-7060.8,0.00043835,30]
[310876109,1704756780477,-582.33901967,0.00043835,30]
[310876110,1704756780507,-381.8249128,0.00043835,30]
[310876111,1704756780518,-257.11873568,0.00043835,30]
[310876112,1704756780529,-546.49192064,0.00043835,30]
[310876113,1704756780540,-1893.61706017,0.00043835,30]
[310876114,1704756780549,-513.79,0.00043835,30]
[310876115,1704756780558,-500.0,0.00043835,30]
[310876116,1704756780567,-500.0,0.00043835,30]
[310876117,1704756780575,-1177.83,0.00043835,30]
[310876118,1704756780584,-500.0,0.00043917,30]
[310876119,1704756780593,-2864.42,0.00043917,30]
[310876120,1704756780603,-952.23,0.00043917,30]
[310876121,1704756780613,-26248.76920516,0.00043917,30]
[310876122,1704756780656,-2239.23079484,0.00043917,30]
[310876123,1704756780665,-513.79,0.00043917,30]
[310876124,1704756780674,-500.0,0.00043917,30]
[310876125,1704756780683,-500.0,0.00043917,30]
[310876126,1704756780692,-1177.83,0.00043917,30]
[310876127,1704756780702,-500.0,0.00043999,30]
[310876128,1704756780711,-2864.42,0.00043999,30]
[310876129,1704756780722,-28488.0,0.00043999,30]
[310876130,1704756780731,-435.32804365,0.00043999,30]
[310876131,1704756780747,-296.75,0.00043999,30]
[310876132,1704756780801,-220.15195635,0.00043999,30]
[310876133,1704756780811,-513.79,0.00043999,30]
[310876134,1704756780821,-500.0,0.00043999,30]
[310876135,1704756780832,-454.32915046,0.00043999,30]
[310876136,1704757127802,2940.4798,0.000249,14]
[310876143,1704757756108,-288.34262207,0.00024987,2]
[310876144,1704757756129,-1000.0,0.00024988,2]
[310876145,1704757756151,-105.68787793,0.00025,2]
[310876154,1704757832117,-1000.0,0.00024999,2]
[310876155,1704757832128,-227.33139922,0.00025,2]
[310876156,1704757832139,-155.0,0.00031897,2]
[310876157,1704757832150,-160.26929914,0.00031898,2]
[310876158,1704757832161,-914.47496769,0.00031899,3]
[310876159,1704757832172,-2606.18162672,0.00031998,4]
[310876160,1704757832184,-150.0,0.00031998,3]
[310876161,1704757832195,-12079.18108611,0.00031999,4]
[310876162,1704757832206,-3000.0,0.00032,2]
[310876163,1704757832217,-3000.0,0.0003201,2]
[310876164,1704757832229,-150.99,0.0003201,2]
[310876165,1704757832241,-499.99,0.0003202,2]
[310876166,1704757832253,-150.99,0.0003202,2]
[310876167,1704757832264,-3000.0,0.0003202,2]
[310876168,1704757832274,-3000.0,0.0003203,2]
[310876169,1704757832285,-5469.814325,0.0003204,2]
[310876170,1704757832296,-202.0,0.00032267,2]
[310876171,1704757832306,-160.26929906,0.00033222,2]
[310876172,1704757832318,-1000.0,0.00034,4]
[310876174,1704757832329,-5751.31,0.00034267,2]
[310876176,1704757832340,-160.26929906,0.00034547,2]
[310876177,1704757832352,-1000.0,0.000349,2]
[310876178,1704757832363,-1256.88761536,0.00035039,4]
[310876179,1704757832374,-202.0,0.0003504,7]
[310876181,1704757832386,-160.26929906,0.00035871,2]
[310876183,1704757832397,-2638.5056881,0.00035998,2]
[310876185,1704757832409,-547.01659378,0.00036078,2]
[310876186,1704757832419,-1048.84423139,0.00036087,60]
[310876188,1704757832430,-430.55514885,0.00036088,4]
[310876190,1704757832441,-263.0,0.00036268,2]
[310876192,1704757832451,-1964.895122,0.00036876,30]
[310876194,1704757832462,-1941.670701,0.00036876,30]
[310876196,1704757832473,-304.77779,0.00036876,30]
[310876199,1704757832484,-160.26929906,0.00037195,2]
[310876201,1704757832494,-202.0,0.00037813,13]
[310876203,1704757832505,-500.0,0.00038193,2]
[310876205,1704757832516,-250.0,0.00038373,111]
[310876207,1704757832526,-2000.0,0.00038382,2]
[310876209,1704757832537,-160.26929906,0.0003852,2]
[310876211,1704757832548,-263.0,0.00038532,2]
[310876213,1704757832559,-200.0,0.00038688,20]
[310876215,1704757832570,-250.0,0.00038757,2]
[310876217,1704757832581,-154.36,0.00038766,2]
[310876219,1704757832591,-158.87,0.00039031,2]
[310876221,1704757832602,-152.0,0.00039061,2]
[310876223,1704757832613,-20702.54100128,0.00039061,4]
[310876226,1704757832627,-5970.83426531,0.00039061,4]
[310876228,1704757832637,-4138.52,0.00039062,2]
[310876230,1704757832648,-167.26,0.00039062,15]
[310876232,1704757832660,-150.0,0.00039143,2]
[310876234,1704757832670,-157.56,0.00039324,2]
[310876236,1704757832681,-1000.0,0.00039823,2]
[310876238,1704757832691,-160.26929906,0.00039844,2]
[310876240,1704757832702,-255.0,0.0004,12]
[310876242,1704757832713,-255.0,0.0004,12]
[310876245,1704757832725,-166.0,0.00040083,2]
[310876246,1704757832735,-202.0,0.00040587,19]
[310876247,1704757832746,-288.9937,0.00040761,2]
[310876248,1704757832756,-263.0,0.00040796,2]
[310876249,1704757832767,-199.0473746,0.000408,2]
[310876250,1704757832777,-718.31,0.00040851,10]
[310876251,1704757832787,-830.0,0.00040861,2]
[310876252,1704757832798,-419.514,0.00040861,2]
[310876253,1704757832809,-1234.0,0.00040861,2]
[310876254,1704757832819,-1164.0,0.00040861,2]
[310876255,1704757832829,-406.741,0.00040861,2]
[310876256,1704757832840,-235.0,0.00040861,2]
[310876257,1704757832850,-19658.0,0.00040861,2]
[310876258,1704757832860,-150.208,0.00040861,2]
[310876259,1704757832872,-150.0,0.00040861,2]
[310876260,1704757832882,-150.0,0.00040861,2]
[310876261,1704757832893,-153.0,0.00040861,2]
[310876262,1704757832903,-160.26929906,0.00041168,2]
[310876263,1704757832913,-157.56,0.00041373,2]
[310876264,1704757832924,-211.27296411,0.00041489,3]
[310876265,1704757832933,-45267.5797,0.00041543,2]
[310876266,1704757832944,-211.27296404,0.00041868,4]
[310876267,1704757832954,-400.0,0.00042,14]
[310876268,1704757832964,-211.27296404,0.00042247,4]
[310876269,1704757832974,-168.54,0.00042352,2]
[310876270,1704757832984,-158.87,0.00042456,2]
[310876271,1704757832995,-160.26929906,0.00042493,2]
[310876272,1704757833006,-200.0,0.00042543,20]
[310876273,1704757833017,-360.0,0.00042597,12]
[310876274,1704757833028,-360.0,0.00042597,12]
[310876275,1704757833038,-211.27296404,0.00042626,4]
[310876276,1704757833049,-360.0,0.00042677,12]
[310876277,1704757833059,-5000.0,0.000428,60]
[310876278,1704757833070,-360.0,0.00042915,12]
[310876279,1704757833080,-68035.71737336,0.00043,30]
[310876280,1704757833091,-211.27296404,0.00043005,5]
[310876281,1704757833101,-263.0,0.0004306,2]
[310876282,1704757833111,-973.7706934,0.00043115,4]
[310876283,1704757833123,-586.64,0.00043209,2]
[310876284,1704757833134,-202.0,0.0004336,25]
[310876285,1704757833145,-211.27296404,0.00043384,5]
[310876286,1704757833156,-393.85529835,0.00043385,4]
[310876287,1704757833167,-4501.0,0.000437,98]
[310876288,1704757833178,-2500.0,0.00043715,2]
[310876289,1704757833190,-10109.8516,0.00043715,7]
[310876290,1704757833201,-1000.0,0.00043717,2]
[310876291,1704757833211,-231.8425396,0.00043733,16]
[310876292,1704757833222,-867.49008061,0.00043733,5]
[310876293,1704757833233,-4769.1706,0.00043735,120]
[310876294,1704757833243,-174.73011459,0.00043761,2]
[310876295,1704757833253,-211.27296404,0.00043763,5]
[310876296,1704757833264,-7186.2243254,0.000438,28]
[310876297,1704757833274,-576.53746936,0.00043814,4]
[310876298,1704757833284,-40445.6060481,0.00043815,10]
[310876299,1704757833789,-1209.88229102,0.00043815,10]
[310876300,1704757833802,-468.88842,0.00043815,10]
[310876301,1704757834433,-415.740577,0.00043815,10]
[310876302,1704757834463,-1208.0,0.00043815,10]
[310876303,1704757834488,-5000.0,0.00043815,10]
[310876304,1704757834512,-979.31778543,0.00043815,10]
[310876305,1704757834535,-2265.59649462,0.00043815,10]
[310876306,1704757834547,-298.82689054,0.00043815,10]
[310876307,1704757834559,-1157.29310776,0.00043815,10]
[310876308,1704757834572,-3070.22312332,0.00043815,10]
[310876309,1704757834589,-4174.05590517,0.00043815,10]
[310876310,1704757834602,-1886.34881642,0.00043815,10]
[310876311,1704757834614,-1913.38049556,0.00043815,10]
[310876312,1704757834625,-1679.6095696,0.00043815,10]
[310876313,1704757834638,-1026.39824093,0.00043815,10]
[310876314,1704757834652,-450.0,0.00043815,10]
[310876315,1704757834670,-1962.65310732,0.00043815,10]
[310876317,1704757838057,-150.686,0.00040861,2]
[310876318,1704757838067,-159.71183241,0.00043596,15]
[310876319,1704757838076,-151.87592754,0.00043735,20]
[310876320,1704757838085,-159.1512401,0.00043815,10]
[310876321,1704757838167,-18674.27961771,0.00043815,10]
[310876322,1704757838177,-37210.05888874,0.00043817,2]
[310876323,1704757838222,-2861.16401675,0.00043817,2]
[310876324,1704757838331,-1478.00002489,0.00043817,2]
[310876325,1704757838491,-1011.98246962,0.00043817,2]
[310876326,1704757838501,-160.26929906,0.00043817,2]
[310876327,1704757838510,-166.95575985,0.00043823,4]
[310876332,1704757843055,-150.0,0.00040861,2]
[310876333,1704757843065,-134.98215751,0.00043823,4]
[310876334,1704757843075,-242.64035737,0.00043823,4]
[310876335,1704757843084,-269.0439706,0.00043823,4]
[310876336,1704757843094,-155.0,0.00043823,4]
[310876337,1704757843103,-162.16059053,0.00043823,4]
[310876338,1704757843112,-2265.58816152,0.00043823,4]
[310876339,1704757843122,-7086.65136248,0.00043824,30]
[310876340,1704757843134,-1265.06823061,0.00043824,30]
[310876341,1704757843269,-5088.03,0.00043824,30]
[310876349,1704758063780,435.20393083,0.00025,7]
[310876350,1704758063809,331.44872288,0.00025,7]
[310876351,1704758134642,483.85569472,0.00023288,4]
[310876352,1704758134671,210.33061072,0.00023288,4]
[310876353,1704758134697,152.34044097,0.00023288,4]
[310876354,1704758324507,167.4,0.00023755,10]